g,Pay date,Expense Type(T),Expense Area(T),Supplier(T),Transaction Number,Amount,Description
NS&I,20/05/2021,Unitary fee - Outsource partner,Commercial and Legal,Atos IT Services UK Ltd,4018514,"4,782,529.38",Unitary service charge -May 2021
NS&I,20/05/2021,Demand-linked costs - Outsource partner,Delivery & Monitoring,Atos IT Services UK Ltd,4018543,"2,479,675.00",Demand link service charge- April 2021
NS&I,26/05/2021,Unitary fee - Outsource partner,B2B Government Payment Services,Atos IT Services UK Ltd,4018550,"1,290,844.08",Tax-free childcare service charges - May 2021
NS&I,12/05/2021,Unitary fee - Outsource partner,B2B Government Payment Services,Atos IT Services UK Ltd,4018487,"1,290,334.08",Tax-free childcare service charges - April 2021
NS&I,26/05/2021,Unitary fee - Outsource partner,B2B Government Payment Services,Atos IT Services UK Ltd,4018549,"649,631.19",Help to save service charges - May 2021
NS&I,20/05/2021,Consultancy services,Rainbow,PA Consulting Services Ltd,4018622,"348,873.80",Strategic business advice and support
NS&I,28/05/2021,Unitary fee - Outsource partner,B2B Government Payment Services,Atos IT Services UK Ltd,4018579,"323,755.00",Help to buy service charges - May 2021
NS&I,05/05/2021,Internal audit fees,Risk,Government Internal Audit Agency,4018497,"259,840.72",Government Internal Audit Agency
NS&I,12/05/2021,Unitary fee - Outsource partner,B2B Government Payment Services,Atos IT Services UK Ltd,4018488,"238,331.41",30 hours free childcare Service Charges - April 2021
NS&I,26/05/2021,Unitary fee - Outsource partner,B2B Government Payment Services,Atos IT Services UK Ltd,4018551,"238,331.41",30 hours free childcare Service Charges - May 2021
NS&I,05/05/2021,Rentals under operating leases,Workplace & Culture,Durham County Council - City of Durham,4018461,"229,982.70",Quarterly Rent for Regional Office Q1 2021
NS&I,28/05/2021,Building services charge,Workplace & Culture,Office For National Statistics,4018645,"199,104.45",Business Rates for London Office
NS&I,05/05/2021,Professional services - Other,Finance,Atos IT Services UK Ltd,4018463,"129,835.00",Financial Ledger Annual Licence Cost 2021
NS&I,28/05/2021,Project costs - Outsource partner,Programme Delivery,Atos IT Services UK Ltd,4018591,"124,112.00",Payment service development costs
NS&I,12/05/2021,Unitary fee - Outsource partner,B2B Government Payment Services,Atos IT Services UK Ltd,4018590,"123,570.29",Court Funds Office Service Charges  April 2021
NS&I,26/05/2021,Unitary fee - Outsource partner,B2B Government Payment Services,Atos IT Services UK Ltd,4018539,"101,395.85",Tax-free childcare service charges March 2021
NS&I,05/05/2021,Project costs - Outsource partner,Programme Delivery,Atos IT Services UK Ltd,4018447,"93,963.00",Improvements to reporting of customer account information
NS&I,26/05/2021,Unitary fee - Outsource partner,B2B Government Payment Services,Atos IT Services UK Ltd,4018499,"92,087.51",30 hours free childcare Service Charges - March 2021
NS&I,26/05/2021,Unitary fee - Outsource partner,B2B Government Payment Services,Atos IT Services UK Ltd,4018508,"92,087.51",Tax-free childcare service charges - March 2021
NS&I,28/05/2021,Project costs - Outsource partner,Programme Delivery,Atos IT Services UK Ltd,4018592,"89,803.00",removal of unneeded customer facility
NS&I,05/05/2021,Project costs - Outsource partner,Programme Delivery,Atos IT Services UK Ltd,4018469,"87,005.00",New corporate communications facility
NS&I,28/05/2021,Maintenance and running costs - Outsource partner,Business Insight,Atos IT Services UK Ltd,4018611,"85,024.00",Data warehouse development work
NS&I,12/05/2021,Unitary fee - Outsource partner,B2B Government Payment Services,Atos IT Services UK Ltd,4018566,"93,308.71",Help to buy service charges - March 2021
NS&I,26/05/2021,Unitary fee - Outsource partner,B2B Government Payment Services,Atos IT Services UK Ltd,4018509,"70,285.75",Help to save service charges - March 2021
NS&I,05/05/2021,Professional services - Legal,Commercial and Legal,Bevan Brittan LLP,4018502,"60,000.00",Legal services 
NS&I,12/05/2021,Maintenance and running costs - Outsource partner,IS & Information Assurance,Atos IT Services UK Ltd,4018511,"59,400.00",Delivering IT orchestration improvements March 2021
NS&I,26/05/2021,Unitary fee - Outsource partner,B2B Government Payment Services,Atos IT Services UK Ltd,4018507,"51,232.19",Tax-free childcare service charges - March 2021
NS&I,05/05/2021,Unitary fee - Outsource partner,Change Delivery,Atos IT Services UK Ltd,4018467,"48,563.00",Improvements to reporting of customer account information
NS&I,05/05/2021,Maintenance and running costs - Outsource partner,Design & Validation,Atos IT Services UK Ltd,4018475,"47,600.00",Enhancing online customer experience
NS&I,05/05/2021,Project costs - Outsource partner,Programme Delivery,Atos IT Services UK Ltd,4018446,"45,531.00",Product Reporting Enhancements
NS&I,05/05/2021,Project costs - Outsource partner,Programme Delivery,Atos IT Services UK Ltd,4018445,"44,107.00", Project recurring costs
NS&I,05/05/2021,Professional services - Other,Complaints Managment,Financial Ombudsman Services,4018540,"43,500.00",Case Fee Charges May 2021
NS&I,12/05/2021,Maintenance and running costs - Outsource partner,Delivery & Monitoring,Atos IT Services UK Ltd,4018519,"41,236.00", Project recurring costs
NS&I,12/05/2021,Business intelligence and analysis,Market Intelligence & Research,MAPA INTERNATIONAL LTD,4018575,"39,600.00",Mobile Banking research
NS&I,12/05/2021,Maintenance and running costs - Outsource partner,Data & Planning,Atos IT Services UK Ltd,4018498,"37,739.00",Strategy development cost
NS&I,12/05/2021,Advertising agency costs,Marketing Communications,Unlimited Group United Ltd,4018568,"37,483.33",Cost of Marketing Campaigns
NS&I,12/05/2021,Corporate functions,Media Relations,NLA Media Access Ltd,4018548,"30,633.60",Copyright Licence - April 2021 -March 2022
NS&I,05/05/2021,Project costs - Outsource partner,Programme Delivery,Atos IT Services UK Ltd,4018453,"27,765.00",Information systems testing 
NS&I,12/05/2021,Maintenance and running costs - Outsource partner,Intermediary Relationships,Atos IT Services UK Ltd,4018513,"27,662.00",FA portal website service costs
NS&I,28/05/2021,Maintenance and running costs - Outsource partner,Commercial and Legal,Atos IT Services UK Ltd,4018617,"26,302.00",Product development 
NS&I,05/05/2021,Professional services - Other,Security & Business Continuity,Atos IT Services UK Ltd,4018472,"25,496.00",Business� continuity services for London Office 
NS&I,28/05/2021,Maintenance and running costs - Outsource partner,Design & Validation,Atos IT Services UK Ltd,4018581,"25,290.00",Customer Experience Platform support costs
0,,,,,,"14,232,850.96",
